Workbook

Sheet Analyse
A1: Video | B1: FPS | C1: Start | D1: End | E1: Reason for End | F1: Distance | G1: Speed | H1: Hindlimb Drops
A2: Unit | B2: 1/s | C2: Frame # | D2: Frame # | F2: cm | G2: cm/s | H2: Frame # | I2: L/R | J2: Frame # | K2: L/R | L2: Frame # | M2: L/R | N2: Frame # | O2: L/R | P2: Frame # | Q2: L/R | R2: Frame # | S2: L/R | T2: Frame # | U2: L/R | V2: Frame # | W2: L/R | X2: Frame # | Y2: L/R | Z2: Frame # | AA2: L/R | AB2: Frame # | AC2: L/R | AD2: Frame # | AE2: L/R
A3: PB_T3_3_1_P3_RotatingBeam_1 | B3: 31 | C3: 50 | D3: 230 | E3: End of beam | F3: 120 | G3: =F3/((D3-C3)/B3) -> 20.66666667 | H3: 99 | I3: R
A4: PB_T3_3_2_P3_RotatingBeam_2 | B4: 32 | C4: 61 | D4: 218 | E4: End of beam | F4: 120 | G4: =F4/((D4-C4)/B4) -> 24.45859873
A5: PB_T3_4_2_P3_RotatingBeam_4 | B5: 32 | C5: 75 | D5: 280 | E5: Stop | F5: 112 | G5: =F5/((D5-C5)/B5) -> 17.48292683 | H5: 187 | I5: L | J5: 251 | K5: R
A6: PB_T3_4_3_P3_RotatingBeam_2 | B6: 31 | C6: 48 | D6: 233 | E6: End of beam | F6: 120 | G6: =F6/((D6-C6)/B6) -> 20.10810811 | H6: 120 | I6: L | J6: 177 | K6: R
A7: PB_T3_4_4_P3_RotatingBeam_1 | B7: 32 | C7: 71 | D7: 341 | E7: End of beam | F7: 120 | G7: =F7/((D7-C7)/B7) -> 14.22222222 | H7: 81 | I7: R | J7: 94 | K7: R | L7: 117 | M7: R | N7: 129 | O7: R | P7: 154 | Q7: R | R7: 161 | S7: L | T7: 209 | U7: R
A8: PB_T3_4_5_P3_RotatingBeam_1 | B8: 31 | C8: 64 | D8: 219 | E8: End of beam | F8: 120 | G8: =F8/((D8-C8)/B8) -> 24
A9: PB_T3_5_2_P3_RotatingBeam_1 | B9: 32 | C9: 60 | D9: 254 | E9: End of beam | F9: 120 | G9: =F9/((D9-C9)/B9) -> 19.79381443 | H9: 74 | I9: L
A10: PB_T3_6_1_P3_RotatingBeam_1 | B10: 43 | C10: 80 | D10: 407 | E10: End of beam | F10: 120 | G10: =F10/((D10-C10)/B10) -> 15.77981651 | H10: 147 | I10: R
A11: PB_T3_7_2_P3_RotatingBeam_4 | B11: 46 | C11: 99 | D11: 708 | E11: End of beam | F11: 120 | G11: =F11/((D11-C11)/B11) -> 9.064039409 | H11: 373 | I11: R | J11: 402 | K11: R | L11: 665 | M11: R
A12: PB_T3_8_4_P3_RotatingBeam_4 | B12: 45 | C12: 96 | D12: 396 | E12: End of beam | F12: 120 | G12: =F12/((D12-C12)/B12) -> 18 | H12: 330 | I12: R
A13: PB_T3_9_3_P3_RotatingBeam_3 | B13: 32 | C13: 61 | D13: 573 | E13: End of beam | F13: 120 | G13: =F13/((D13-C13)/B13) -> 7.5 | H13: 118 | I13: R | J13: 156 | K13: L | L13: 160 | M13: R | N13: 195 | O13: R | P13: 237 | Q13: R | R13: 264 | S13: R | T13: 295 | U13: R | V13: 337 | W13: R | X13: 376 | Y13: R | Z13: 441 | AA13: R | AB13: 462 | AC13: R | AD13: 486 | AE13: R
A14: PB_T3_9_4_P3_RotatingBeam_2 | B14: 31 | C14: 59 | D14: 538 | E14: End of beam | F14: 120 | G14: =F14/((D14-C14)/B14) -> 7.766179541 | H14: 224 | I14: L | J14: 436 | K14: L
A15: PB_T3_10_2_P3_RotatingBeam_2 | B15: 32 | C15: 67 | D15: 317 | E15: End of beam | F15: 120 | G15: =F15/((D15-C15)/B15) -> 15.36
A16: PB_T3_10_3_P3_RotatingBeam_3 | B16: 32 | C16: 57 | D16: 248 | E16: End of beam | F16: 120 | G16: =F16/((D16-C16)/B16) -> 20.10471204 | H16: 156 | I16: R
A17: PB_T3_12_1_P3_RotatingBeam_2 | B17: 30 | C17: 40 | D17: 380 | E17: End of beam | F17: 120 | G17: =F17/((D17-C17)/B17) -> 10.58823529 | H17: 113 | I17: R | J17: 230 | K17: R
A18: PB_T3_13_4_P3_RotatingBeam_3 | B18: 30 | C18: 61 | D18: 240 | E18: End of beam | F18: 120 | G18: =F18/((D18-C18)/B18) -> 20.11173184
A19: PB_T3_14_1_P3_RotatingBeam_1 | B19: 30 | C19: 70 | D19: 320 | E19: End of beam | F19: 120 | G19: =F19/((D19-C19)/B19) -> 14.4 | H19: 78 | I19: R | J19: 123 | K19: R | L19: 230 | M19: R | N19: 244 | O19: R
A20: PB_T3_14_3_P3_RotatingBeam_2 | B20: 30 | C20: 52 | D20: 232 | E20: End of beam | F20: 120 | G20: =F20/((D20-C20)/B20) -> 20
A21: PB_T3_16_3_P3_RotatingBeam_2 | B21: 30 | C21: 61 | D21: 343 | E21: End of beam | F21: 120 | G21: =F21/((D21-C21)/B21) -> 12.76595745 | H21: 151 | I21: R | J21: 201 | K21: R
A22: PB_T3_17_1_P3_RotatingBeam_4 | B22: 30 | C22: 71 | D22: 243 | E22: End of beam | F22: 120 | G22: =F22/((D22-C22)/B22) -> 20.93023256 | H22: 120 | I22: L

Sheet Definitionen
C3: Einheit | D3: Definition
B4: Start | C4: Frame Nummer | D4: Der Startpunkt wird gesetzt, wenn sowohl rechte Vorder- als auch Hinterpfote sichtbar sind und kurz davor (~ 10 Pixel) sind die Stange zu berühren.
B5: Ende | C5: Frame Nummer | D5: Der Endpunkt wird gesetzt, wenn eins der folgenden Ereignisse eintritt:
D6: - drop, Schnauzenspitze und Schwanzansatz befinden sich sichtbar unter der Stange
D7: - turn, Schnauzenspitze befindet sich sichtbar links, Schwanzansatz sichtbar rechts und die Maus bewegt sich nach links
D8: - end of beam, die Maus hat die letzten 5 cm der Stange mit ihren Vorderpfoten erreicht.
D9: - stop, die Maus bewegt sich für 1 Sekunde nicht. Weder Hinter- noch Vorderpfoten haben sich bewegt
D10: - time over, 60 Sekunden sind verstrichen
B11: Grund für Ende | C11: Character | D11: Begründung für das Ende der Analyse (drop, turn, end of beam, stop oder time over)
B12: Distance | C12: cm | D12: Die gelaufene Distanz zwischen Start- und Endzeitpunkt der Analyse in Zentimeter
B13: Speed | C13: cm/s | D13: Geschwindigkeit zwischen Start- und Endzeitpunkt der Analyse in Zentimeter pro Sekunde
B14: Hindlimb Drops | C14: Frame Nummer + L/R | D14: Ein Hindlimb Drop findet statt, wenn sich die linke oder rechte Hinterpfote sichtbar unter der Stange befindet. Mit Angabe auf welcher Seite der Drop stattgefunden hat (L/R).
D15: Ein weiterer Hindlimb Drop wird erst dann gezählt, wenn sich die Hinterpfote zwischenzeitlich wieder über/auf der Stange befunden hat.
